[Event "*** Titled Tuesday Blitz"]
[Site "Chess.com"]
[Date "2020.11.10"]
[Round "3"]
[White "Skat2704"]
[Black "baki83"]
[Result "0-1"]
[WhiteElo "2442"]
[BlackElo "2763"]
[TimeControl "180+1"]
[EndTime "10:33:01 PST"]
[Termination "baki83 won by resignation"]

1. d4 {[%clk 0:03:00]} 1... Nf6 {[%clk 0:02:46.1]} 2. c4 {[%clk 0:02:59.1]} 2...
e6 {[%clk 0:02:46]} 3. Nf3 {[%clk 0:02:56.9]} 3... Bb4+ {[%clk 0:02:45.2]} 4.
Bd2 {[%clk 0:02:56.5]} 4... a5 {[%clk 0:02:45.7]} 5. g3 {[%clk 0:02:54.3]} 5...
O-O {[%clk 0:02:45]} 6. Bg2 {[%clk 0:02:53.8]} 6... d5 {[%clk 0:02:45.5]} 7. Qc2
{[%clk 0:02:52.2]} 7... b6 {[%clk 0:02:40.4]} 8. O-O {[%clk 0:02:51.1]} 8... Ba6
{[%clk 0:02:40.2]} 9. Bxb4 {[%clk 0:02:46.9]} 9... axb4 {[%clk 0:02:40.4]} 10.
Nbd2 {[%clk 0:02:47.3]} 10... Qe7 {[%clk 0:02:23.8]} 11. a4 {[%clk 0:02:34.8]}
11... c5 {[%clk 0:01:52.5]} 12. a5 {[%clk 0:02:18]} 12... Nbd7 {[%clk
0:01:26.2]} 13. Rfc1 {[%clk 0:02:01.1]} 13... Rfc8 {[%clk 0:01:12]} 14. e4
{[%clk 0:01:41.4]} 14... dxc4 {[%clk 0:01:03.9]} 15. Nxc4 {[%clk 0:01:33.2]}
15... cxd4 {[%clk 0:01:03]} 16. Qb3 {[%clk 0:01:15.3]} 16... Bxc4 {[%clk
0:00:48.8]} 17. Rxc4 {[%clk 0:01:13.6]} 17... Rxc4 {[%clk 0:00:44.2]} 18. Qxc4
{[%clk 0:01:13.3]} 18... bxa5 {[%clk 0:00:43.5]} 19. Nxd4 {[%clk 0:01:07.2]}
19... Qc5 {[%clk 0:00:38.2]} 20. Qxc5 {[%clk 0:00:55.1]} 20... Nxc5 {[%clk
0:00:39.1]} 21. e5 {[%clk 0:00:52.4]} 21... Nd5 {[%clk 0:00:38.9]} 22. Nc6
{[%clk 0:00:52.6]} 22... Nb3 {[%clk 0:00:35.8]} 23. Rd1 {[%clk 0:00:51.1]} 23...
Kf8 {[%clk 0:00:32]} 24. Bxd5 {[%clk 0:00:42.8]} 24... exd5 {[%clk 0:00:32.9]}
25. Rxd5 {[%clk 0:00:43.3]} 25... g6 {[%clk 0:00:33.1]} 26. Rb5 {[%clk
0:00:39.6]} 26... Ra6 {[%clk 0:00:30]} 27. Rb8+ {[%clk 0:00:35.3]} 27... Kg7
{[%clk 0:00:29.6]} 28. Nd8 {[%clk 0:00:33.5]} 28... Ra7 {[%clk 0:00:24.6]} 29.
Nc6 {[%clk 0:00:32.2]} 29... Rc7 {[%clk 0:00:23]} 30. Rb6 {[%clk 0:00:31]} 30...
h5 {[%clk 0:00:20.1]} 31. h4 {[%clk 0:00:30.5]} 31... Rd7 {[%clk 0:00:19.1]} 32.
Kg2 {[%clk 0:00:28.2]} 32... Rd2 {[%clk 0:00:18.7]} 33. Rb7 {[%clk 0:00:27.2]}
33... Nc5 {[%clk 0:00:17.7]} 34. Ra7 {[%clk 0:00:25.8]} 34... Nd3 {[%clk
0:00:16.8]} 35. e6 {[%clk 0:00:25.4]} 35... Rxf2+ {[%clk 0:00:16.4]} 36. Kg1
{[%clk 0:00:25.7]} 36... Rf6 {[%clk 0:00:12.9]} 37. e7 {[%clk 0:00:25.3]} 37...
Re6 {[%clk 0:00:11.9]} 38. Ra8 {[%clk 0:00:25.4]} 38... Re1+ {[%clk 0:00:11.6]}
39. Kg2 {[%clk 0:00:25.6]} 39... Nxb2 {[%clk 0:00:09.9]} 40. e8=Q {[%clk
0:00:24.8]} 40... Rxe8 {[%clk 0:00:09.8]} 41. Rxe8 {[%clk 0:00:25.4]} 41... Nc4
{[%clk 0:00:10]} 42. Ra8 {[%clk 0:00:24.4]} 42... b3 {[%clk 0:00:07.9]} 43. Rb8
{[%clk 0:00:20.5]} 43... a4 {[%clk 0:00:05.6]} 44. Nd4 {[%clk 0:00:20.5]} 44...
b2 {[%clk 0:00:05.1]} 45. Rb4 {[%clk 0:00:19.5]} 45... a3 {[%clk 0:00:04.8]} 46.
Nc2 {[%clk 0:00:15.4]} 46... a2 {[%clk 0:00:04.9]} 47. Rxc4 {[%clk 0:00:13.4]}
47... b1=Q {[%clk 0:00:05.3]} 48. Rc7 {[%clk 0:00:12.2]} 48... a1=Q {[%clk
0:00:05.5]} 49. Nxa1 {[%clk 0:00:12.2]} 49... Qxa1 {[%clk 0:00:06.4]} 50. Rc2
{[%clk 0:00:11.6]} 50... Qb1 {[%clk 0:00:06.8]} 51. Rf2 {[%clk 0:00:11.3]} 51...
Qb7+ {[%clk 0:00:07.3]} 52. Kh2 {[%clk 0:00:11.3]} 52... Qb6 {[%clk 0:00:08.2]}
53. Rf4 {[%clk 0:00:11.2]} 53... Qb5 {[%clk 0:00:08.6]} 54. Kg2 {[%clk
0:00:11.3]} 54... Qd5+ {[%clk 0:00:09.1]} 55. Kh2 {[%clk 0:00:11.6]} 55... Qe5
{[%clk 0:00:09.4]} 56. Kg2 {[%clk 0:00:11.8]} 56... f6 {[%clk 0:00:09.8]} 57.
Kh2 {[%clk 0:00:12.1]} 57... Kh6 {[%clk 0:00:10.3]} 58. Kg2 {[%clk 0:00:12]}
58... g5 {[%clk 0:00:10.6]} 59. hxg5+ {[%clk 0:00:12.4]} 59... Kxg5 {[%clk
0:00:10.9]} 60. Rf2 {[%clk 0:00:10.5]} 60... Qe4+ {[%clk 0:00:11]} 61. Kh2
{[%clk 0:00:10.7]} 61... f5 {[%clk 0:00:11.6]} 62. Kg1 {[%clk 0:00:09.6]} 62...
Qe3 {[%clk 0:00:11.7]} 63. Kg2 {[%clk 0:00:09.3]} 63... Kg4 {[%clk 0:00:11.6]}
64. Rf4+ {[%clk 0:00:09.1]} 64... Qxf4 {[%clk 0:00:11.1]} 65. gxf4 {[%clk
0:00:09]} 65... Kxf4 {[%clk 0:00:11.6]} 0-1

[Event "*** Titled Tuesday Blitz"]
[Site "Chess.com"]
[Date "2020.11.10"]
[Round "3"]
[White "zala02"]
[Black "dpopadic"]
[Result "0-1"]
[WhiteElo "2150"]
[BlackElo "2350"]
[TimeControl "180+1"]
[EndTime "10:33:01 PST"]
[Termination "dpopadic won on time"]

1. d4 {[%clk 0:03:00.9]} 1... Nf6 {[%clk 0:02:59.3]} 2. c4 {[%clk 0:02:59.6]}
2... g6 {[%clk 0:02:59.3]} 3. Nc3 {[%clk 0:02:59.2]} 3... Bg7 {[%clk 0:02:59.9]}
4. e4 {[%clk 0:02:59.4]} 4... d6 {[%clk 0:03:00.2]} 5. Nf3 {[%clk 0:02:59.4]}
5... O-O {[%clk 0:03:00.7]} 6. Be2 {[%clk 0:02:59.5]} 6... e5 {[%clk 0:03:00.8]}
7. O-O {[%clk 0:02:59.8]} 7... Na6 {[%clk 0:03:00.7]} 8. Be3 {[%clk 0:02:37.8]}
8... Ng4 {[%clk 0:02:59.9]} 9. Bg5 {[%clk 0:02:37.6]} 9... Qe8 {[%clk 0:02:59]}
10. d5 {[%clk 0:02:19]} 10... f5 {[%clk 0:02:56.3]} 11. Nd2 {[%clk 0:02:15.2]}
11... Nf6 {[%clk 0:02:55.5]} 12. f3 {[%clk 0:02:06.4]} 12... Nh5 {[%clk
0:02:55.1]} 13. a3 {[%clk 0:01:53.1]} 13... Nf4 {[%clk 0:02:52]} 14. Bxf4 {[%clk
0:01:36.6]} 14... exf4 {[%clk 0:02:51.4]} 15. Qc2 {[%clk 0:01:35.8]} 15... Bd7
{[%clk 0:02:31.9]} 16. Kh1 {[%clk 0:01:33.5]} 16... Qf7 {[%clk 0:02:30.4]} 17.
b4 {[%clk 0:01:21.4]} 17... Kh8 {[%clk 0:02:27.3]} 18. Rac1 {[%clk 0:01:15.1]}
18... Rae8 {[%clk 0:02:22.5]} 19. Bd3 {[%clk 0:01:14.3]} 19... Nb8 {[%clk
0:02:18.6]} 20. c5 {[%clk 0:01:08.5]} 20... Be5 {[%clk 0:02:16.4]} 21. Rfe1
{[%clk 0:00:49.6]} 21... Bc8 {[%clk 0:02:15.9]} 22. Nb5 {[%clk 0:00:44.7]} 22...
a6 {[%clk 0:02:12.8]} 23. Nc3 {[%clk 0:00:43.9]} 23... Nd7 {[%clk 0:02:12.4]}
24. cxd6 {[%clk 0:00:39.2]} 24... cxd6 {[%clk 0:02:11.6]} 25. a4 {[%clk
0:00:37.8]} 25... Nf6 {[%clk 0:02:04.4]} 26. b5 {[%clk 0:00:19.6]} 26... Nh5
{[%clk 0:01:54.4]} 27. bxa6 {[%clk 0:00:18.7]} 27... bxa6 {[%clk 0:01:53.8]} 28.
Nc4 {[%clk 0:00:16.1]} 28... Qg7 {[%clk 0:01:30.9]} 29. Nxe5 {[%clk 0:00:15.1]}
29... Rxe5 {[%clk 0:01:30.7]} 30. a5 {[%clk 0:00:14.6]} 30... Qh6 {[%clk
0:01:25.6]} 31. Kg1 {[%clk 0:00:14.1]} 31... Ng3 {[%clk 0:01:21.5]} 32. hxg3
{[%clk 0:00:11.4]} 32... fxg3 {[%clk 0:01:21.1]} 33. Ne2 {[%clk 0:00:06.8]}
33... Qh2+ {[%clk 0:01:15.1]} 34. Kf1 {[%clk 0:00:07]} 34... fxe4 {[%clk
0:01:14.6]} 35. Bxe4 {[%clk 0:00:06.9]} 35... Bf5 {[%clk 0:01:13.2]} 36. Ng1
{[%clk 0:00:05.6]} 36... h5 {[%clk 0:01:05]} 37. Bxf5 {[%clk 0:00:05]} 37...
Rexf5 {[%clk 0:01:00.1]} 38. Re3 {[%clk 0:00:04.1]} 38... h4 {[%clk 0:00:56.7]}
39. Qc3+ {[%clk 0:00:03.6]} 39... Kh7 {[%clk 0:00:52.1]} 40. Re7+ {[%clk
0:00:03.1]} 40... R5f7 {[%clk 0:00:50]} 41. Rxf7+ {[%clk 0:00:03.1]} 41... Rxf7
{[%clk 0:00:49.7]} 42. Qe3 {[%clk 0:00:02.3]} 42... Qh1 {[%clk 0:00:47.5]} 43.
Qg5 {[%clk 0:00:01.9]} 43... Kg7 {[%clk 0:00:42]} 44. Qg4 {[%clk 0:00:01.5]}
44... Qh2 {[%clk 0:00:31.1]} 45. Qh3 {[%clk 0:00:01.8]} 45... Rf5 {[%clk
0:00:27.5]} 46. Rc3 {[%clk 0:00:02.1]} 46... Rxd5 {[%clk 0:00:26.7]} 47. Qd7+
{[%clk 0:00:01.8]} 47... Kh6 {[%clk 0:00:26.1]} 48. Rc7 {[%clk 0:00:01.9]} 48...
Rd1+ {[%clk 0:00:25.1]} 49. Ke2 {[%clk 0:00:02.4]} 49... Qxg2+ {[%clk
0:00:24.9]} 50. Kxd1 {[%clk 0:00:02.3]} 50... Qxg1+ {[%clk 0:00:24.8]} 51. Ke2
{[%clk 0:00:02.8]} 51... Qf2+ {[%clk 0:00:24.6]} 52. Kd1 {[%clk 0:00:03.2]}
52... Qxf3+ {[%clk 0:00:24.6]} 53. Kd2 {[%clk 0:00:03.2]} 53... g2 {[%clk
0:00:24.9]} 54. Qg7+ {[%clk 0:00:02.9]} 54... Kg5 {[%clk 0:00:25.1]} 55. Qe7+
{[%clk 0:00:03.2]} 55... Kg4 {[%clk 0:00:25.3]} 56. Qe6+ {[%clk 0:00:03.2]}
56... Kg3 {[%clk 0:00:22.9]} 57. Qxg6+ {[%clk 0:00:03.4]} 57... Kh2 {[%clk
0:00:23]} 58. Rc1 {[%clk 0:00:02.2]} 58... Qf4+ {[%clk 0:00:20.5]} 59. Ke2
{[%clk 0:00:02.2]} 59... Qxc1 {[%clk 0:00:19.4]} 60. Qxd6+ {[%clk 0:00:02.6]}
60... Kh1 {[%clk 0:00:18.1]} 61. Qd5 {[%clk 0:00:02.4]} 61... Qf1+ {[%clk
0:00:17.8]} 62. Ke3 {[%clk 0:00:02.3]} 62... Qe1+ {[%clk 0:00:15.1]} 63. Kf4
{[%clk 0:00:02.1]} 63... Qf2+ {[%clk 0:00:13.6]} 64. Kg4 {[%clk 0:00:02.2]}
64... Qg3+ {[%clk 0:00:12.8]} 65. Kh5 {[%clk 0:00:01.9]} 65... Kh2 {[%clk
0:00:12.7]} 0-1

[Event "*** Titled Tuesday Blitz"]
[Site "Chess.com"]
[Date "2020.11.10"]
[Round "3"]
[White "Zq1"]
[Black "Anaj14"]
[Result "1-0"]
[WhiteElo "2547"]
[BlackElo "2342"]
[TimeControl "180+1"]
[EndTime "10:33:02 PST"]
[Termination "Zq1 won by resignation"]

1. d4 {[%clk 0:03:00.9]} 1... d5 {[%clk 0:02:59]} 2. c4 {[%clk 0:02:59.7]} 2...
c6 {[%clk 0:02:58.8]} 3. cxd5 {[%clk 0:02:59.9]} 3... cxd5 {[%clk 0:02:58.7]} 4.
Bg5 {[%clk 0:02:59.8]} 4... Nc6 {[%clk 0:02:58]} 5. Nc3 {[%clk 0:02:59.2]} 5...
Nf6 {[%clk 0:02:44.3]} 6. Bxf6 {[%clk 0:02:57.8]} 6... exf6 {[%clk 0:02:44.2]}
7. e3 {[%clk 0:02:58.3]} 7... Bb4 {[%clk 0:02:19]} 8. Ne2 {[%clk 0:02:54.3]}
8... O-O {[%clk 0:02:17.8]} 9. g3 {[%clk 0:02:53.9]} 9... Bf5 {[%clk 0:02:08.1]}
10. Bg2 {[%clk 0:02:53.4]} 10... Be4 {[%clk 0:02:08.5]} 11. O-O {[%clk
0:02:42.6]} 11... Bxg2 {[%clk 0:02:05]} 12. Kxg2 {[%clk 0:02:42.5]} 12... Rc8
{[%clk 0:01:56.4]} 13. Qb3 {[%clk 0:02:40.9]} 13... Bxc3 {[%clk 0:01:55.7]} 14.
Nxc3 {[%clk 0:02:40.2]} 14... Ne7 {[%clk 0:01:56.3]} 15. Rac1 {[%clk 0:02:37.1]}
15... Qd7 {[%clk 0:01:54.2]} 16. Qb5 {[%clk 0:02:27.6]} 16... Qe6 {[%clk
0:01:40.7]} 17. h3 {[%clk 0:02:02.8]} 17... a6 {[%clk 0:01:38.6]} 18. Qb3 {[%clk
0:01:54.3]} 18... b5 {[%clk 0:01:35.5]} 19. a4 {[%clk 0:01:49.4]} 19... Rb8
{[%clk 0:01:33.3]} 20. axb5 {[%clk 0:01:48.5]} 20... axb5 {[%clk 0:01:33.3]} 21.
Ne2 {[%clk 0:01:38.8]} 21... g5 {[%clk 0:01:27.6]} 22. Rc5 {[%clk 0:01:31.9]}
22... b4 {[%clk 0:01:25.1]} 23. Rfc1 {[%clk 0:01:28.5]} 23... h5 {[%clk
0:01:22.8]} 24. Qd3 {[%clk 0:01:24.4]} 24... Kg7 {[%clk 0:01:17.2]} 25. Ng1
{[%clk 0:01:18.3]} 25... Rfc8 {[%clk 0:01:08.9]} 26. Nf3 {[%clk 0:01:15.7]}
26... Rxc5 {[%clk 0:01:05.6]} 27. Rxc5 {[%clk 0:01:14.4]} 27... Qe4 {[%clk
0:00:52.8]} 28. Qxe4 {[%clk 0:01:11.4]} 28... dxe4 {[%clk 0:00:52.7]} 29. Nd2
{[%clk 0:01:10.8]} 29... f5 {[%clk 0:00:53]} 30. g4 {[%clk 0:01:07.2]} 30...
hxg4 {[%clk 0:00:51.9]} 31. hxg4 {[%clk 0:01:06.3]} 31... fxg4 {[%clk
0:00:45.4]} 32. Rxg5+ {[%clk 0:01:02.8]} 32... Kf8 {[%clk 0:00:43.3]} 33. Nxe4
{[%clk 0:00:59]} 33... f5 {[%clk 0:00:41.1]} 34. Nd6 {[%clk 0:00:48.4]} 34...
Ra8 {[%clk 0:00:33.3]} 35. Nxf5 {[%clk 0:00:46.9]} 35... Ra2 {[%clk 0:00:33.3]}
36. Nxe7 {[%clk 0:00:44.5]} 36... Kxe7 {[%clk 0:00:34.2]} 37. Rxg4 {[%clk
0:00:44.2]} 37... Rxb2 {[%clk 0:00:34.8]} 38. Rg7+ {[%clk 0:00:44.2]} 38... Kd6
{[%clk 0:00:34.5]} 39. Rb7 {[%clk 0:00:43.7]} 39... Kc6 {[%clk 0:00:34.6]} 40.
Rb8 {[%clk 0:00:42.9]} 40... Kc7 {[%clk 0:00:34.7]} 41. Rb5 {[%clk 0:00:42.9]}
41... Kc6 {[%clk 0:00:35]} 42. Rc5+ {[%clk 0:00:42.9]} 42... Kb6 {[%clk
0:00:34.6]} 43. Kf3 {[%clk 0:00:40.1]} 43... b3 {[%clk 0:00:35]} 44. Rc8 {[%clk
0:00:34.9]} 44... Kb7 {[%clk 0:00:33.8]} 45. Rc4 {[%clk 0:00:34.1]} 45... Kb6
{[%clk 0:00:34]} 46. Rb4+ {[%clk 0:00:34]} 46... Ka5 {[%clk 0:00:33.5]} 47. Rb8
{[%clk 0:00:32.5]} 47... Ka4 {[%clk 0:00:33]} 48. d5 {[%clk 0:00:30.9]} 48...
Rd2 {[%clk 0:00:30.7]} 49. e4 {[%clk 0:00:28]} 49... Ka3 {[%clk 0:00:27.6]} 50.
Ke3 {[%clk 0:00:26.7]} 50... Rd1 {[%clk 0:00:27.8]} 51. Ke2 {[%clk 0:00:23.1]}
51... Rd4 {[%clk 0:00:26.9]} 52. Ra8+ {[%clk 0:00:18]} 52... Kb2 {[%clk
0:00:25.7]} 53. Ke3 {[%clk 0:00:16.5]} 53... Rd1 {[%clk 0:00:26]} 54. f4 {[%clk
0:00:15.7]} 54... Kb1 {[%clk 0:00:25.1]} 55. f5 {[%clk 0:00:14.7]} 55... b2
{[%clk 0:00:25.6]} 56. f6 {[%clk 0:00:13.2]} 56... Re1+ {[%clk 0:00:26.1]} 57.
Kf4 {[%clk 0:00:12.5]} 57... Kc2 {[%clk 0:00:22.8]} 58. Rc8+ {[%clk 0:00:12]}
58... Kd3 {[%clk 0:00:22.9]} 59. Rb8 {[%clk 0:00:10.9]} 59... Rxe4+ {[%clk
0:00:21.9]} 60. Kf5 {[%clk 0:00:11]} 60... Rd4 {[%clk 0:00:21]} 61. Ke5 {[%clk
0:00:10]} 61... Re4+ {[%clk 0:00:20.3]} 62. Kd6 {[%clk 0:00:09]} 62... Rf4
{[%clk 0:00:20.6]} 63. Rxb2 {[%clk 0:00:07.8]} 63... Rxf6+ {[%clk 0:00:20.4]}
64. Ke5 {[%clk 0:00:08]} 64... Rf2 {[%clk 0:00:19.9]} 65. Rb4 {[%clk 0:00:08.1]}
65... Re2+ {[%clk 0:00:19.8]} 66. Kd6 {[%clk 0:00:07.5]} 66... Kc3 {[%clk
0:00:20.3]} 67. Rh4 {[%clk 0:00:07.1]} 67... Rd2 {[%clk 0:00:15.4]} 68. Kc6
{[%clk 0:00:07]} 68... Rd1 {[%clk 0:00:15]} 69. d6 {[%clk 0:00:07.1]} 69... Rd2
{[%clk 0:00:15.2]} 70. d7 {[%clk 0:00:07.2]} 70... Kb3 {[%clk 0:00:15.2]} 71.
Rh8 {[%clk 0:00:06.8]} 71... Kc4 {[%clk 0:00:13.7]} 72. d8=Q {[%clk 0:00:06.1]}
1-0

[Event "*** Titled Tuesday Blitz"]
[Site "Chess.com"]
[Date "2020.11.10"]
[Round "3"]
[White "Chigorinetz"]
[Black "Matibar"]
[Result "0-1"]
[WhiteElo "2530"]
[BlackElo "2762"]
[TimeControl "180+1"]
[EndTime "10:33:05 PST"]
[Termination "Matibar won by resignation"]

1. e4 {[%clk 0:03:00.9]} 1... e5 {[%clk 0:02:58.7]} 2. Bc4 {[%clk 0:03:00.2]}
2... Nf6 {[%clk 0:02:58.3]} 3. d3 {[%clk 0:03:00.3]} 3... Bc5 {[%clk 0:02:56.8]}
4. Nc3 {[%clk 0:03:00]} 4... d6 {[%clk 0:02:55.1]} 5. f4 {[%clk 0:03:00]} 5...
Nc6 {[%clk 0:02:51.4]} 6. Nf3 {[%clk 0:02:59.5]} 6... a6 {[%clk 0:02:41.4]} 7.
f5 {[%clk 0:02:56.8]} 7... b5 {[%clk 0:02:37.1]} 8. Bb3 {[%clk 0:02:56.1]} 8...
Na5 {[%clk 0:02:37.1]} 9. Bg5 {[%clk 0:02:54.6]} 9... Nxb3 {[%clk 0:02:20.4]}
10. axb3 {[%clk 0:02:54]} 10... Bb7 {[%clk 0:02:21.1]} 11. Qe2 {[%clk
0:02:46.2]} 11... h6 {[%clk 0:02:14]} 12. Bh4 {[%clk 0:02:45.4]} 12... g5 {[%clk
0:02:13.6]} 13. fxg6 {[%clk 0:02:35.6]} 13... fxg6 {[%clk 0:02:14.5]} 14. Bf2
{[%clk 0:02:20.1]} 14... Bxf2+ {[%clk 0:02:03.7]} 15. Qxf2 {[%clk 0:02:21]}
15... O-O {[%clk 0:02:04.1]} 16. O-O {[%clk 0:02:19]} 16... Kh7 {[%clk
0:01:58.2]} 17. Qh4 {[%clk 0:02:15.7]} 17... Qe7 {[%clk 0:01:57.6]} 18. Rf2
{[%clk 0:02:06.5]} 18... Ng8 {[%clk 0:01:48.1]} 19. Qxe7+ {[%clk 0:01:56.6]}
19... Nxe7 {[%clk 0:01:48]} 20. b4 {[%clk 0:01:54.8]} 20... g5 {[%clk
0:01:42.1]} 21. h3 {[%clk 0:01:37.9]} 21... Kg7 {[%clk 0:01:35]} 22. Nh2 {[%clk
0:01:25.5]} 22... Rxf2 {[%clk 0:01:32.5]} 23. Kxf2 {[%clk 0:01:26.4]} 23... Rf8+
{[%clk 0:01:32.7]} 24. Kg1 {[%clk 0:01:17.7]} 24... Nc6 {[%clk 0:01:22.1]} 25.
Nd5 {[%clk 0:01:16.8]} 25... Nd4 {[%clk 0:01:22.4]} 26. Nxc7 {[%clk 0:00:56.7]}
26... Rc8 {[%clk 0:01:06]} 27. c3 {[%clk 0:00:56.5]} 27... Ne2+ {[%clk 0:00:55]}
28. Kf2 {[%clk 0:00:55.8]} 28... Nf4 {[%clk 0:00:55.9]} 29. g3 {[%clk
0:00:39.3]} 29... Nxd3+ {[%clk 0:00:52.7]} 30. Ke3 {[%clk 0:00:39.3]} 30... Nxb2
{[%clk 0:00:52.8]} 31. Nd5 {[%clk 0:00:29.9]} 31... Bxd5 {[%clk 0:00:48.2]} 32.
exd5 {[%clk 0:00:30]} 32... Rxc3+ {[%clk 0:00:48.8]} 33. Ke4 {[%clk 0:00:28.3]}
33... Na4 {[%clk 0:00:32.4]} 34. Ng4 {[%clk 0:00:26.9]} 34... Kg6 {[%clk
0:00:29.3]} 35. Ne3 {[%clk 0:00:25.4]} 35... Rb3 {[%clk 0:00:18]} 36. Rf1 {[%clk
0:00:22.4]} 36... Rxb4+ {[%clk 0:00:18.1]} 37. Kf3 {[%clk 0:00:20.7]} 37... Nc5
{[%clk 0:00:18.2]} 38. h4 {[%clk 0:00:20]} 38... Rb3 {[%clk 0:00:15.5]} 39. Ke2
{[%clk 0:00:19.6]} 39... Ne4 {[%clk 0:00:14.9]} 40. Ra1 {[%clk 0:00:18.1]} 40...
Nxg3+ {[%clk 0:00:14]} 41. Kd2 {[%clk 0:00:18.2]} 41... Nf5 {[%clk 0:00:14]} 42.
Nxf5 {[%clk 0:00:15.4]} 42... Kxf5 {[%clk 0:00:14.9]} 43. hxg5 {[%clk
0:00:13.8]} 43... hxg5 {[%clk 0:00:15]} 44. Rxa6 {[%clk 0:00:14.3]} 44... g4
{[%clk 0:00:13.2]} 45. Rxd6 {[%clk 0:00:14.2]} 45... g3 {[%clk 0:00:13.6]} 46.
Rd8 {[%clk 0:00:14.3]} 46... Ke4 {[%clk 0:00:13.2]} 47. d6 {[%clk 0:00:13.6]}
47... Rd3+ {[%clk 0:00:13.3]} 48. Ke2 {[%clk 0:00:13]} 48... b4 {[%clk
0:00:13.7]} 49. Rg8 {[%clk 0:00:11.9]} 49... Rxd6 {[%clk 0:00:12.8]} 50. Rg4+
{[%clk 0:00:11.4]} 50... Kf5 {[%clk 0:00:11.1]} 51. Rxb4 {[%clk 0:00:11.9]}
51... e4 {[%clk 0:00:11.4]} 52. Rb8 {[%clk 0:00:11]} 52... Rg6 {[%clk
0:00:09.1]} 53. Kf1 {[%clk 0:00:10.2]} 53... Kf4 {[%clk 0:00:08.8]} 54. Kg2
{[%clk 0:00:09.8]} 54... Rg5 {[%clk 0:00:08.7]} 55. Rb3 {[%clk 0:00:09.6]} 55...
Rc5 {[%clk 0:00:07.3]} 56. Rb8 {[%clk 0:00:08.4]} 56... Rc2+ {[%clk 0:00:07.3]}
57. Kg1 {[%clk 0:00:08.8]} 57... Kf3 {[%clk 0:00:06.5]} 58. Rf8+ {[%clk
0:00:08.6]} 58... Ke2 {[%clk 0:00:06.9]} 59. Ra8 {[%clk 0:00:09.1]} 59... e3
{[%clk 0:00:07.1]} 60. Kg2 {[%clk 0:00:09.4]} 60... Ke1+ {[%clk 0:00:06.9]} 61.
Kg1 {[%clk 0:00:09.5]} 61... e2 {[%clk 0:00:06.7]} 62. Rd8 {[%clk 0:00:09.4]}
62... Rd2 {[%clk 0:00:06.4]} 63. Ra8 {[%clk 0:00:08.6]} 63... Kd1 {[%clk
0:00:06.5]} 64. Ra1+ {[%clk 0:00:08.6]} 64... Kc2 {[%clk 0:00:07]} 65. Kg2
{[%clk 0:00:09.3]} 65... Rd1 {[%clk 0:00:07.2]} 66. Ra2+ {[%clk 0:00:09.1]}
66... Kd3 {[%clk 0:00:07.8]} 67. Ra3+ {[%clk 0:00:09.4]} 67... Kc4 {[%clk
0:00:08.3]} 68. Re3 {[%clk 0:00:08.4]} 68... e1=Q {[%clk 0:00:08.4]} 0-1

[Event "*** Titled Tuesday Blitz"]
[Site "Chess.com"]
[Date "2020.11.10"]
[Round "3"]
[White "GalperinPlaton"]
[Black "Piotrek1979"]
[Result "1-0"]
[WhiteElo "2881"]
[BlackElo "2463"]
[TimeControl "180+1"]
[EndTime "10:33:07 PST"]
[Termination "GalperinPlaton won by resignation"]

1. Nf3 {[%clk 0:03:00.9]} 1... Nf6 {[%clk 0:02:54.3]} 2. g3 {[%clk 0:03:01.8]}
2... g6 {[%clk 0:02:53.8]} 3. Bg2 {[%clk 0:03:02.7]} 3... Bg7 {[%clk 0:02:54.3]}
4. O-O {[%clk 0:03:03.6]} 4... d6 {[%clk 0:02:54.5]} 5. d4 {[%clk 0:03:03.6]}
5... O-O {[%clk 0:02:55.4]} 6. Nc3 {[%clk 0:03:03.5]} 6... c5 {[%clk 0:02:51]}
7. h3 {[%clk 0:02:58.6]} 7... Nc6 {[%clk 0:02:50.2]} 8. d5 {[%clk 0:02:53.8]}
8... Na5 {[%clk 0:02:48.2]} 9. e4 {[%clk 0:02:51]} 9... b5 {[%clk 0:02:46.6]}
10. e5 {[%clk 0:02:47.9]} 10... Ne8 {[%clk 0:02:42.5]} 11. Nxb5 {[%clk
0:02:42.2]} 11... Rb8 {[%clk 0:02:39.6]} 12. Nc3 {[%clk 0:02:38.8]} 12... Nc4
{[%clk 0:02:26.1]} 13. Re1 {[%clk 0:01:56.9]} 13... Nxb2 {[%clk 0:02:21.2]} 14.
Qe2 {[%clk 0:01:53.1]} 14... Qa5 {[%clk 0:02:18.7]} 15. Ne4 {[%clk 0:01:23.8]}
15... Bf5 {[%clk 0:02:14.3]} 16. Bf4 {[%clk 0:01:05.6]} 16... Bxe4 {[%clk
0:01:51.1]} 17. Qxe4 {[%clk 0:01:06.5]} 17... Na4 {[%clk 0:01:51.2]} 18. Bd2
{[%clk 0:01:00.7]} 18... Qb5 {[%clk 0:01:36]} 19. Bf1 {[%clk 0:00:52]} 19... Qd7
{[%clk 0:01:30.5]} 20. Rab1 {[%clk 0:00:47.3]} 20... Nc7 {[%clk 0:01:26.8]} 21.
e6 {[%clk 0:00:36.8]} 21... fxe6 {[%clk 0:01:26.1]} 22. dxe6 {[%clk 0:00:37.7]}
22... Qe8 {[%clk 0:01:20.2]} 23. Ng5 {[%clk 0:00:34.3]} 23... Rxb1 {[%clk
0:01:11.9]} 24. Rxb1 {[%clk 0:00:35.2]} 24... d5 {[%clk 0:01:12.2]} 25. Qh4
{[%clk 0:00:30.4]} 25... h6 {[%clk 0:00:43.5]} 26. Nf7 {[%clk 0:00:30.4]} 26...
Nxe6 {[%clk 0:00:32.6]} 27. Nxh6+ {[%clk 0:00:30.1]} 27... Bxh6 {[%clk
0:00:33.3]} 28. Bxh6 {[%clk 0:00:30.3]} 28... Rf5 {[%clk 0:00:31.7]} 29. Bb5
{[%clk 0:00:27.4]} 29... Qf7 {[%clk 0:00:20.4]} 30. Bxa4 {[%clk 0:00:27.2]}
30... Rh5 {[%clk 0:00:21]} 31. Qg4 {[%clk 0:00:13.5]} 31... Rxh6 {[%clk
0:00:20.7]} 32. Re1 {[%clk 0:00:10.6]} 32... Nd4 {[%clk 0:00:20.7]} 33. Kg2
{[%clk 0:00:11]} 33... Kg7 {[%clk 0:00:19.9]} 34. c3 {[%clk 0:00:10.3]} 34...
Nf5 {[%clk 0:00:18.1]} 35. Re5 {[%clk 0:00:09.6]} 35... Rh5 {[%clk 0:00:18.3]}
36. Bb3 {[%clk 0:00:06.5]} 36... Nh4+ {[%clk 0:00:18]} 37. Qxh4 {[%clk
0:00:02.1]} 37... Rxe5 {[%clk 0:00:18.6]} 38. Qg4 {[%clk 0:00:01.8]} 38... e6
{[%clk 0:00:18.6]} 39. Qd1 {[%clk 0:00:02.4]} 39... c4 {[%clk 0:00:19.1]} 40.
Bc2 {[%clk 0:00:01.8]} 40... Qf6 {[%clk 0:00:20]} 41. Qd2 {[%clk 0:00:01.8]}
41... g5 {[%clk 0:00:19.4]} 42. f4 {[%clk 0:00:02.7]} 42... gxf4 {[%clk
0:00:19.2]} 43. gxf4 {[%clk 0:00:03.6]} 43... Rh5 {[%clk 0:00:19.1]} 44. Bd1
{[%clk 0:00:04.1]} 44... Rh6 {[%clk 0:00:18.6]} 45. Bg4 {[%clk 0:00:04.6]} 45...
Kf8 {[%clk 0:00:17.1]} 46. Qe3 {[%clk 0:00:04.8]} 46... Rg6 {[%clk 0:00:16.5]}
47. Qc5+ {[%clk 0:00:05.1]} 47... Kg7 {[%clk 0:00:15.1]} 48. Qxa7+ {[%clk
0:00:05]} 48... Kh6 {[%clk 0:00:13.7]} 49. Qe3 {[%clk 0:00:05.2]} 49... Qf5
{[%clk 0:00:11.8]} 50. Kf3 {[%clk 0:00:04.6]} 50... Qf6 {[%clk 0:00:03.9]} 51.
Kg3 {[%clk 0:00:03.6]} 51... Kg7 {[%clk 0:00:03.6]} 52. a3 {[%clk 0:00:03.8]}
52... Rh6 {[%clk 0:00:04.2]} 53. a4 {[%clk 0:00:03.3]} 53... Qh4+ {[%clk
0:00:04.8]} 54. Kg2 {[%clk 0:00:03.6]} 54... Rf6 {[%clk 0:00:05.7]} 55. a5
{[%clk 0:00:03.4]} 55... Qh6 {[%clk 0:00:06.3]} 56. a6 {[%clk 0:00:03.6]} 56...
Rxf4 {[%clk 0:00:05.5]} 57. Qe5+ {[%clk 0:00:03.7]} 57... Kf7 {[%clk 0:00:04.4]}
58. Bxe6+ {[%clk 0:00:03.4]} 58... Kf8 {[%clk 0:00:03.9]} 59. Qd6+ {[%clk
0:00:02.4]} 59... Kg7 {[%clk 0:00:03.8]} 60. Qe7+ {[%clk 0:00:02.9]} 60... Kh8
{[%clk 0:00:04.4]} 61. Bg4 {[%clk 0:00:02.8]} 61... Rxg4+ {[%clk 0:00:03.7]} 62.
hxg4 {[%clk 0:00:02.5]} 62... Qd2+ {[%clk 0:00:04.6]} 63. Kg3 {[%clk 0:00:02.6]}
63... Qe3+ {[%clk 0:00:05.2]} 64. Qxe3 {[%clk 0:00:01.9]} 64... d4 {[%clk
0:00:05]} 65. Qxd4+ {[%clk 0:00:02.8]} 1-0